fUST/lending_fUST_20250701
["ID","MTS","AMOUNT","RATE_DAILY","PERIOD"]
[368766310,1751353543887,-460.0,0.00018041,2]
[368766311,1751353543913,-460.0,0.00018041,2]
[368766312,1751353543939,-460.0,0.00018041,2]
[368766313,1751353544069,-460.0,0.00018041,2]
[368766314,1751353544094,-591.56,0.00018041,2]
[368766315,1751353544117,-460.0,0.00018041,2]
[368766316,1751353544138,-460.0,0.00018041,2]
[368766317,1751353544160,-460.0,0.00018041,2]
[368766318,1751353544183,-460.0,0.00018041,2]
[368766319,1751353544203,-460.88895312,0.00018041,2]
[368766320,1751353544225,-460.0,0.00018041,2]
[368766321,1751353544246,-466.8470811,0.00018041,2]
[368766322,1751353544268,-181.22573577,0.00018041,2]
[368766323,1751353544289,-465.75505613,0.00018041,2]
[368766324,1751353544311,-460.0,0.00018041,2]
[368766325,1751353544333,-460.0,0.00018041,2]
[368766326,1751353544356,-393.36237582,0.00018041,2]
[368766327,1751353544378,-444.2555391,0.00018041,2]
[368766328,1751353544401,-460.0,0.00018041,2]
[368766329,1751353544423,-463.74158925,0.00018041,2]
[368766330,1751353544448,-460.0,0.00018041,2]
[368766331,1751353544471,-460.0,0.00018041,2]
[368766332,1751353544495,-460.0,0.00018041,2]
[368766333,1751353544519,-460.0,0.00018041,2]
[368766334,1751353544540,-460.0,0.00018041,2]
[368766335,1751353544562,-460.0,0.00018041,2]
[368766336,1751353544585,-460.0,0.00018041,2]
[368766337,1751353544608,-463.01148576,0.00018041,2]
[368766338,1751353544630,-500.0,0.00018041,2]
[368766339,1751353544654,-460.0,0.00018041,2]
[368766340,1751353544678,-460.0,0.00018041,2]
[368766341,1751353544701,-460.0,0.00018041,2]
[368766342,1751353544724,-461.81055739,0.00018041,2]
[368766343,1751353544746,-460.0,0.00018041,2]
[368766344,1751353544768,-460.0,0.00018041,2]
[368766345,1751353544790,-460.0,0.00018041,2]
[368766346,1751353544813,-466.9346475,0.00018041,2]
[368766347,1751353544836,-460.0,0.00018041,2]
[368766348,1751353544859,-460.0,0.00018041,2]
[368766349,1751353544883,-460.0,0.00018041,2]
[368766350,1751353544908,-643.33,0.00018041,2]
[368766351,1751353544930,-460.0,0.00018041,2]
[368766352,1751353544952,-460.0,0.00018041,2]
[368766353,1751353544975,-460.0,0.00018041,2]
[368766354,1751353544997,-460.0,0.00018041,2]
[368766355,1751353545019,-470.51955669,0.00018041,2]
[368766356,1751353545040,-460.0,0.00018041,2]
[368766357,1751353545062,-463.39513666,0.00018041,2]
[368766358,1751353545085,-460.0,0.00018041,2]
[368766359,1751353545109,-500.0,0.00018041,2]
[368766360,1751353545133,-460.0,0.00018041,2]
[368766361,1751353545157,-460.0,0.00018041,2]
[368766362,1751353545180,-460.0,0.00018041,2]
[368766363,1751353545203,-460.0,0.00018041,2]
[368766364,1751353545227,-1576.23,0.00018041,2]
[368766365,1751353545250,-460.0,0.00018041,2]
[368766366,1751353545273,-460.0,0.00018041,2]
[368766367,1751353545297,-675.29,0.00018041,2]
[368766368,1751353545320,-469.88036713,0.00018041,2]
[368766369,1751353545343,-460.0,0.00018041,2]
[368766370,1751353545367,-460.0,0.00018041,2]
[368766371,1751353545389,-461.22731244,0.00018041,2]
[368766372,1751353545413,-460.0,0.00018041,2]
[368766373,1751353545436,-460.0,0.00018041,2]
[368766374,1751353545458,-460.0,0.00018041,2]
[368766375,1751353545481,-460.0,0.00018041,2]
[368766376,1751353545505,-460.0,0.00018041,2]
[368766377,1751353545528,-460.31126389,0.00018041,2]
[368766378,1751353545551,-460.0,0.00018041,2]
[368766379,1751353545573,-461.57965871,0.00018042,2]
[368766380,1751353545595,-460.0,0.00018042,2]
[368766381,1751353545617,-460.0,0.00018042,2]
[368766382,1751353545639,-522.78393968,0.00018042,2]
[368766383,1751353545661,-313.1517193,0.00018042,2]
[368766384,1751353545684,-460.0,0.00018042,2]
[368766385,1751353545705,-467.90056934,0.00018042,2]
[368766386,1751353545728,-500.0,0.00018042,2]
[368766387,1751353545750,-251.98781083,0.00018042,2]
[368766388,1751353545772,-500.0,0.00018042,2]
[368766389,1751353545794,-460.0,0.00018042,2]
[368766390,1751353545818,-460.0,0.00018042,2]
[368766391,1751353545840,-500.0,0.00018042,2]
[368766392,1751353545863,-464.7706507,0.00018042,2]
[368766393,1751353545885,-460.0,0.00018042,2]
[368766394,1751353545907,-460.0,0.00018042,2]
[368766395,1751353545930,-460.0,0.00018042,2]
[368766396,1751353545953,-460.0,0.00018042,2]
[368766397,1751353545974,-460.0,0.00018042,2]
[368766398,1751353545996,-254.60910511,0.00018042,2]
[368766399,1751353546018,-460.45541293,0.00018042,2]
[368766400,1751353546041,-505.81811383,0.00018042,2]
[368766401,1751353546063,-460.0,0.00018042,2]
[368766402,1751353546085,-407.72008457,0.00018042,2]
[368766403,1751353546109,-460.0,0.00018042,2]
[368766404,1751353546132,-460.0,0.00018042,2]
[368766405,1751353546154,-224.49671706,0.00018042,2]
[368766406,1751353546176,-460.0,0.00018042,2]
[368766407,1751353546198,-490.0,0.00018042,2]
[368766408,1751353546220,-315.39149235,0.00018042,2]
[368766409,1751353546242,-460.0,0.00018042,2]
[368766410,1751353546265,-460.0,0.00018042,2]
[368766411,1751353546289,-460.0,0.00018042,2]
[368766412,1751353546314,-562.08,0.00018042,2]
[368766413,1751353546336,-500.0,0.00018042,2]
[368766414,1751353546359,-460.0,0.00018042,2]
[368766415,1751353546381,-460.0,0.00018042,2]
[368766416,1751353546402,-460.0,0.00018042,2]
[368766417,1751353546425,-460.0,0.00018042,2]
[368766418,1751353546447,-460.0,0.00018042,2]
[368766419,1751353546470,-180.88067471,0.00018042,2]
[368766420,1751353546491,-460.0,0.00018042,2]
[368766421,1751353546513,-332.48860349,0.00018042,2]
[368766422,1751353546536,-460.0,0.00018042,2]
[368766423,1751353546558,-460.0,0.00018042,2]
[368766424,1751353546580,-460.0,0.00018042,2]
[368766425,1751353546601,-509.11,0.00018042,2]
[368766426,1751353546623,-460.0,0.00018042,2]
[368766427,1751353546645,-460.0,0.00018042,2]
[368766428,1751353546667,-460.0,0.00018042,2]
[368766429,1751353546689,-460.0,0.00018042,2]
[368766430,1751353546711,-460.0,0.00018042,2]
[368766431,1751353546733,-500.0,0.00018042,2]
[368766432,1751353546756,-1447.27,0.00018042,2]
[368766433,1751353546881,-460.0,0.00018042,2]
[368766434,1751353546906,-460.0,0.00018042,2]
[368766435,1751353546929,-460.0,0.00018042,2]
[368766436,1751353546950,-460.0,0.00018042,2]
[368766437,1751353546973,-488.66,0.00018042,2]
[368766438,1751353546995,-460.0,0.00018042,2]
[368766439,1751353547016,-460.0,0.00018042,2]
[368766440,1751353547036,-460.0,0.00018042,2]
[368766441,1751353547058,-487.62313856,0.00018042,2]
[368766442,1751353547080,-460.0,0.00018042,2]
[368766443,1751353547101,-460.0,0.00018042,2]
[368766444,1751353547123,-460.0,0.00018042,2]
[368766445,1751353547145,-230.25826149,0.00018042,2]
[368766446,1751353547166,-460.0,0.00018042,2]
[368766447,1751353547187,-460.0,0.00018042,2]
[368766448,1751353547208,-177.69290882,0.00018043,2]
[368766449,1751353547229,-460.0,0.00018043,2]
[368766450,1751353547250,-460.0,0.00018043,2]
[368766451,1751353547272,-463.13410802,0.00018043,2]
[368766452,1751353547293,-460.0,0.00018043,2]
[368766453,1751353547315,-460.0,0.00018043,2]
[368766454,1751353547336,-460.0,0.00018043,2]
[368766455,1751353547357,-460.0,0.00018043,2]
[368766456,1751353547379,-456.28514903,0.00018043,2]
[368766457,1751353547400,-460.0,0.00018043,2]
[368766458,1751353547422,-460.0,0.00018043,2]
[368766459,1751353547444,-460.0,0.00018043,2]
[368766460,1751353547466,-506.22313359,0.00018043,2]
[368766461,1751353547488,-460.0,0.00018043,2]
[368766462,1751353547510,-213.82225906,0.00018043,2]
[368766463,1751353547532,-489.29,0.00018043,2]
[368766464,1751353547555,-460.0,0.00018043,2]
[368766465,1751353547578,-460.0,0.00018043,2]
[368766466,1751353547601,-460.0,0.00018043,2]
[368766467,1751353547626,-460.0,0.00018043,2]
[368766468,1751353547649,-460.0,0.00018043,2]
[368766469,1751353547672,-460.0,0.00018043,2]
[368766470,1751353547694,-500.0,0.00018043,2]
[368766471,1751353547716,-460.0,0.00018043,2]
[368766472,1751353547738,-425.69320663,0.00018043,2]
[368766473,1751353547760,-460.0,0.00018043,2]
[368766474,1751353547781,-170.80552542,0.00018043,2]
[368766475,1751353547803,-460.0,0.00018043,2]
[368766476,1751353547828,-460.0,0.00018043,2]
[368766477,1751353547849,-460.0,0.00018043,2]
[368766478,1751353547871,-460.0,0.00018043,2]
[368766479,1751353547892,-460.0,0.00018043,2]
[368766480,1751353547916,-500.0,0.00018044,2]
[368766481,1751353548052,460.0,0.00018041,2]
[368766482,1751353548123,460.0,0.00018041,2]
[368766483,1751353548172,460.0,0.00018041,2]
[368766484,1751353548206,460.0,0.00018041,2]
[368766485,1751353548357,460.0,0.00018041,2]
[368766486,1751353548402,460.0,0.00018041,2]
[368766487,1751353548433,461.20086993,0.00018041,2]
[368766488,1751353548496,443.52219086,0.0001804,2]
[368766489,1751353548527,501.44218709,0.00018039,2]
[368766490,1751353548558,151.0,0.00018042,2]
[368766491,1751353548593,463.5921407,0.00018041,2]
[368766492,1751353548634,-535.9944024,0.00018215,2]
[368766493,1751353549933,465.19069236,0.00018041,2]
[368766494,1751353550946,460.0,0.0001804,2]
[368766495,1751353551947,464.96750783,0.00018041,2]
[368766496,1751353553436,181.98,0.0001804,2]
[368766497,1751353554348,460.0,0.0001804,2]
[368766498,1751353554374,460.0,0.0001804,2]
[368766499,1751353555084,459.10131722,0.0001804,2]
[368766500,1751353555297,460.0,0.00018041,2]
[368766501,1751353557094,460.0,0.0001804,2]
[368766502,1751353558252,464.79240548,0.00018041,2]
[368766503,1751353559852,465.80834029,0.00018041,2]
[368766504,1751353563856,626.37,0.00018041,2]
[368766505,1751353565729,537.6784803,0.0001804,2]
[368766506,1751353567736,460.0,0.0001804,2]
[368766507,1751353569922,323.43906758,0.0001804,2]
[368766508,1751353571053,460.0,0.00018041,2]
[368766509,1751353573682,460.0,0.0001804,2]
[368766510,1751353574536,193.20020826,0.00018039,2]
[368766511,1751353576353,540.0,0.00018039,2]
[368766512,1751353578692,679.55,0.0001804,2]
[368766513,1751353578725,186.57410897,0.00017941,2]
[368766514,1751353581312,460.0,0.0001804,2]
[368766515,1751353581450,251.87744938,0.00024658,120]
[368766516,1751353582704,460.0,0.00018041,2]
[368766517,1751353583396,462.34502677,0.00018039,2]
[368766518,1751353586981,460.0,0.0001804,2]
[368766519,1751353587651,460.0,0.00018039,2]
[368766520,1751353588534,1148.07,0.00018039,2]
[368766521,1751353590671,460.0,0.0001804,2]
[368766522,1751353591358,420.00426703,0.0001804,2]
[368766523,1751353595134,524.45,0.00018041,2]
[368766524,1751353600137,-530.06777174,0.00018215,2]
[368766525,1751353600159,-151.0,0.00018215,2]
[368766526,1751353600182,-393.9,0.00018305,3]
[368766527,1751353600207,-196.95,0.00018305,3]
[368766528,1751353600233,-590.87,0.00018305,3]
[368766529,1751353600256,-300.0,0.00018312,2]
[368766530,1751353600279,-460.0,0.00018313,2]
[368766531,1751353600301,-460.0,0.00018313,2]
[368766532,1751353600324,-460.0,0.00018313,2]
[368766533,1751353600347,-460.0,0.00018313,2]
[368766534,1751353600371,-521.79,0.00018313,2]
[368766535,1751353600393,-460.0,0.00018313,2]
[368766536,1751353600417,-1148.07,0.00018313,2]
[368766537,1751353600440,-460.0,0.00018314,2]
[368766538,1751353600461,-460.0,0.00018314,2]
[368766539,1751353600483,-460.0,0.00018314,2]
[368766540,1751353600504,-479.79176108,0.00018314,2]
[368766541,1751353600526,-305.40631569,0.00018314,2]
[368766542,1751353600548,-460.0,0.00018314,2]
[368766543,1751353600570,-460.0,0.00018314,2]
[368766544,1751353600591,-460.0,0.00018314,2]
[368766545,1751353600614,-460.0,0.00018314,2]
[368766546,1751353600635,-460.0,0.00018314,2]
[368766547,1751353600656,-460.0,0.00018314,2]
[368766548,1751353600677,-460.0,0.00018314,2]
[368766549,1751353600698,-460.0,0.00018314,2]
[368766550,1751353600719,-460.0,0.00018314,2]
[368766551,1751353600740,-460.0,0.00018314,2]
[368766552,1751353600762,-460.0,0.00018314,2]
[368766553,1751353600784,-460.0,0.00018314,2]
[368766554,1751353600806,-460.0,0.00018314,2]
[368766555,1751353600830,-460.0,0.00018314,2]
[368766556,1751353600854,-838.51,0.00018314,2]
[368766557,1751353600881,-460.0,0.00018314,2]
[368766558,1751353600903,-460.0,0.00018314,2]
[368766559,1751353600927,-547.02,0.00018314,2]
[368766560,1751353600951,-531.1,0.00018314,2]
[368766561,1751353600973,-460.0,0.00018314,2]
[368766562,1751353600996,-460.0,0.00018314,2]
[368766563,1751353601018,-460.0,0.00018314,2]
[368766564,1751353601042,-575.85,0.00018314,2]
[368766565,1751353601064,-460.0,0.00018314,2]
[368766566,1751353601086,-498.88,0.00018314,2]
[368766567,1751353601109,-518.69,0.00018314,2]
[368766568,1751353601131,-460.0,0.00018314,2]
[368766569,1751353601155,-801.85,0.00018314,2]
[368766570,1751353601177,-460.0,0.00018314,2]
[368766571,1751353601200,-460.0,0.00018314,2]
[368766572,1751353601222,-460.0,0.00018314,2]
[368766573,1751353601244,-460.0,0.00018314,2]
[368766574,1751353601269,-1049.48,0.00018314,2]
[368766575,1751353601292,-920.25,0.00018314,2]
[368766576,1751353601313,-460.0,0.00018314,2]
[368766577,1751353601336,-500.0,0.00018314,2]
[368766578,1751353601359,-437.65,0.00018314,2]
[368766579,1751353601383,-508.21,0.00018314,2]
[368766580,1751353601405,-460.0,0.00018314,2]
[368766581,1751353601428,-460.0,0.00018314,2]
[368766582,1751353601451,-184.13,0.00018314,2]
[368766583,1751353601472,-460.0,0.00018314,2]
[368766584,1751353601494,-460.0,0.00018314,2]
[368766585,1751353601516,-460.0,0.00018314,2]
[368766586,1751353601539,-555.52,0.00018314,2]
[368766587,1751353601562,-679.55,0.00018314,2]
[368766588,1751353601584,-460.0,0.00018314,2]
[368766589,1751353601606,-460.0,0.00018315,2]
[368766590,1751353601627,-300.70797096,0.00018315,2]
[368766591,1751353601650,-460.0,0.00018315,2]
[368766592,1751353601672,-437.58396113,0.00018315,2]
[368766593,1751353601693,-460.0,0.00018315,2]
[368766594,1751353601714,-460.0,0.00018315,2]
[368766595,1751353601736,-460.0,0.00018315,2]
[368766596,1751353601757,-460.0,0.00018315,2]
[368766597,1751353601784,-355.17651511,0.00018315,2]
[368766598,1751353601806,-198.65,0.00018315,2]
[368766599,1751353601827,-460.0,0.00018315,2]
[368766600,1751353601850,-644.38,0.00018315,2]
[368766601,1751353601879,-460.0,0.00018315,2]
[368766602,1751353601903,-460.0,0.00018315,2]
[368766603,1751353601927,-482.02,0.00018315,2]
[368766604,1751353601951,-460.0,0.00018315,2]
[368766605,1751353601974,-460.0,0.00018315,2]
[368766606,1751353601998,-460.0,0.00018315,2]
[368766607,1751353602022,-460.0,0.00018315,2]
[368766608,1751353602045,-507.15,0.00018315,2]
[368766609,1751353602067,-460.0,0.00018315,2]
[368766610,1751353602091,-508.17363053,0.00018315,2]
[368766611,1751353602113,-460.0,0.00018315,2]
[368766612,1751353602138,-460.0,0.00018315,2]
[368766613,1751353602160,-427.65548453,0.00018315,2]
[368766614,1751353602183,-460.0,0.00018315,2]
[368766615,1751353602205,-460.0,0.00018315,2]
[368766616,1751353602230,-460.0,0.00018315,2]
[368766617,1751353602254,-460.0,0.00018315,2]
[368766618,1751353602278,-460.0,0.00018315,2]
[368766619,1751353602403,-460.0,0.00018315,2]
[368766620,1751353602426,-460.0,0.00018315,2]
[368766621,1751353602449,-500.0,0.00018315,2]
[368766622,1751353602472,-460.0,0.00018315,2]
[368766623,1751353602494,-460.0,0.00018315,2]
[368766624,1751353602516,-460.0,0.00018315,2]
[368766625,1751353602540,-460.0,0.00018315,2]
[368766626,1751353602564,-460.0,0.00018315,2]
[368766627,1751353602589,-460.0,0.00018315,2]
[368766628,1751353602612,-460.0,0.00018315,2]
[368766629,1751353602636,-460.0,0.00018315,2]
[368766630,1751353602661,-643.33,0.00018315,2]
[368766631,1751353602684,-407.17,0.00018315,2]
[368766632,1751353602708,-460.0,0.00018315,2]
[368766633,1751353602736,-460.0,0.00018315,2]
[368766634,1751353602762,-460.0,0.00018315,2]
[368766635,1751353602787,-500.0,0.00018315,2]
[368766636,1751353602810,-460.0,0.00018315,2]
[368766637,1751353602835,-1576.23,0.00018315,2]
[368766638,1751353602859,-460.0,0.00018315,2]
[368766639,1751353602887,-460.0,0.00018315,2]
[368766640,1751353602911,-675.29,0.00018315,2]
[368766641,1751353602933,-460.0,0.00018315,2]
[368766642,1751353602960,-460.0,0.00018315,2]
[368766643,1751353602985,-460.0,0.00018315,2]
[368766644,1751353603008,-467.44438804,0.00018315,2]
[368766645,1751353603033,-574.31,0.00018315,2]
[368766646,1751353603058,-460.0,0.00018315,2]
[368766647,1751353603081,-460.0,0.00018315,2]
[368766648,1751353603105,-460.0,0.00018315,2]
[368766649,1751353603129,-626.37,0.00018315,2]
[368766650,1751353603152,-460.0,0.00018315,2]
[368766651,1751353603176,-524.45,0.00018315,2]
[368766652,1751353603203,-460.0,0.00018316,2]
[368766653,1751353603227,-460.0,0.00018316,2]
[368766654,1751353603249,-460.0,0.00018316,2]
[368766655,1751353603272,-460.0,0.00018316,2]
[368766656,1751353603294,-576.1,0.00018316,2]
[368766657,1751353603317,-460.0,0.00018316,2]
[368766658,1751353603339,-472.68,0.00018316,2]
[368766659,1751353603362,-460.0,0.00018316,2]
[368766660,1751353603385,-372.97716548,0.00018316,2]
[368766661,1751353603407,-460.0,0.00018316,2]
[368766662,1751353603429,-460.0,0.00018316,2]
[368766663,1751353603451,-460.0,0.00018317,2]
[368766664,1751353603474,-460.0,0.00018317,2]
[368766665,1751353603496,-460.0,0.00018317,2]
[368766666,1751353603518,-460.4723002,0.00018317,2]
[368766667,1751353603540,-460.0,0.00018317,2]
[368766668,1751353603566,-460.0,0.00018317,2]
[368766669,1751353603589,-460.0,0.00018317,2]
[368766670,1751353603612,-460.0,0.00018317,2]
[368766671,1751353603636,-460.0,0.00018317,2]
[368766672,1751353603659,-460.0,0.00018317,2]
[368766673,1751353603788,565.00017737,0.00018039,2]
[368766674,1751353603817,460.0,0.00018039,2]
[368766675,1751353603848,460.0,0.00018041,2]
[368766676,1751353603890,599.76,0.00018315,2]
[368766677,1751353603956,460.0,0.0001804,2]
[368766678,1751353604007,460.0,0.0001804,2]
[368766679,1751353604043,460.0,0.00018314,2]
[368766680,1751353604711,460.0,0.0001804,2]
[368766681,1751353604969,460.0,0.00018314,2]
[368766682,1751353610755,460.0,0.00018041,2]
[368766683,1751353611240,-460.0,0.00018587,2]
[368766684,1751353611264,-521.79,0.00018587,2]
[368766685,1751353611287,-1148.07,0.00018587,2]
[368766686,1751353611308,-460.0,0.00018588,2]
[368766687,1751353611330,-460.0,0.00018588,2]
[368766688,1751353611453,-460.0,0.00018588,2]
[368766689,1751353611477,-460.0,0.00018588,2]
[368766690,1751353611499,-460.0,0.00018588,2]
[368766691,1751353611520,-460.0,0.00018588,2]
[368766692,1751353611543,-838.51,0.00018588,2]
[368766693,1751353611566,-609.17,0.00018588,2]
[368766694,1751353611589,-460.0,0.00018588,2]
[368766695,1751353611610,-460.0,0.00018588,2]
[368766696,1751353611632,-518.69,0.00018588,2]
[368766697,1751353611656,-801.85,0.00018588,2]
[368766698,1751353611678,-460.0,0.00018588,2]
[368766699,1751353611702,-1049.48,0.00018588,2]
[368766700,1751353611727,-920.25,0.00018588,2]
[368766701,1751353611752,-500.0,0.00018588,2]
[368766702,1751353611779,-508.21,0.00018588,2]
[368766703,1751353611806,-207.77,0.00018588,2]
[368766704,1751353611835,-460.0,0.00018588,2]
[368766705,1751353611859,-223.0,0.00018588,2]
[368766706,1751353611887,-523.66,0.00018588,2]
[368766707,1751353611912,-679.55,0.00018588,2]
[368766708,1751353611936,-568.81,0.00018588,2]
[368766709,1751353611961,-460.0,0.00018588,2]
[368766710,1751353611984,-509.6,0.00018589,2]
[368766711,1751353612006,-460.0,0.00018589,2]
[368766712,1751353612028,-460.0,0.00018589,2]
[368766713,1751353612051,-644.38,0.00018589,2]
[368766714,1751353612075,-460.0,0.00018589,2]
[368766715,1751353612099,-460.0,0.00018589,2]
[368766716,1751353612122,-589.05,0.00018589,2]
[368766717,1751353612144,-460.0,0.00018589,2]
[368766718,1751353612168,-460.0,0.00018589,2]
[368766719,1751353612191,-460.0,0.00018589,2]
[368766720,1751353612219,-460.0,0.00018589,2]
[368766721,1751353612242,-524.24,0.00018589,2]
[368766722,1751353612266,-460.0,0.00018589,2]
[368766723,1751353612289,-460.0,0.00018589,2]
[368766724,1751353612311,-460.0,0.00018589,2]
[368766725,1751353612334,-460.0,0.00018589,2]
[368766726,1751353612357,-460.0,0.00018589,2]
[368766727,1751353612381,-460.0,0.00018589,2]
[368766728,1751353612404,-643.33,0.00018589,2]
[368766729,1751353612427,-460.0,0.00018589,2]
[368766730,1751353612450,-460.0,0.00018589,2]
[368766731,1751353612472,-460.0,0.00018589,2]
[368766732,1751353612496,-1576.23,0.00018589,2]
[368766733,1751353612520,-460.0,0.00018589,2]
[368766734,1751353612546,-460.0,0.00018589,2]
[368766735,1751353612572,-675.29,0.00018589,2]
[368766736,1751353612597,-460.0,0.00018589,2]
[368766737,1751353612622,-460.0,0.00018589,2]
[368766738,1751353612645,-412.62,0.00018589,2]
[368766739,1751353612669,-460.0,0.00018589,2]
[368766740,1751353612692,-261.43,0.00018589,2]
[368766741,1751353612718,-626.37,0.00018589,2]
[368766742,1751353612748,-551.98073413,0.00018589,2]
[368766743,1751353612772,-524.45,0.00018589,2]
[368766744,1751353612796,-460.0,0.0001859,2]
[368766745,1751353612820,-460.0,0.0001859,2]
[368766746,1751353612842,-460.0,0.0001859,2]
[368766747,1751353612866,-460.0,0.00018591,2]
[368766748,1751353612889,-460.0,0.00018591,2]
[368766749,1751353612911,-460.0,0.00018591,2]
[368766750,1751353612933,-408.92615635,0.00018591,2]
[368766751,1751353612965,467.77789809,0.00018041,2]
[368766752,1751353612994,481.64,0.0001804,2]
[368766753,1751353618663,776.26,0.00018039,2]
[368766754,1751353618946,776.26,0.00018313,2]
[368766755,1751353621564,460.0,0.00018041,2]
[368766756,1751353623893,484.4,0.0001804,2]
[368766757,1751353624312,-484.4,0.00018314,2]
[368766758,1751353624337,-2276.53259302,0.00018848,2]
[368766759,1751353624362,-319.05,0.00018861,2]
[368766760,1751353624387,-521.79,0.00018861,2]
[368766761,1751353624412,-1148.07,0.00018861,2]
[368766762,1751353624436,-300.0,0.00018861,2]
[368766763,1751353624459,-460.0,0.00018862,2]
[368766764,1751353624482,-460.0,0.00018862,2]
[368766765,1751353624506,-214.65852581,0.00018862,2]
[368766766,1751353624530,-460.0,0.00018862,2]
[368766767,1751353624554,-460.0,0.00018862,2]
[368766768,1751353624578,-460.0,0.00018862,2]
[368766769,1751353624602,-460.0,0.00018862,2]
[368766770,1751353624627,-801.85,0.00018862,2]
[368766771,1751353624653,-310.63,0.00018862,2]
[368766772,1751353624678,-1049.48,0.00018862,2]
[368766773,1751353624704,-920.25,0.00018862,2]
[368766774,1751353624729,-500.0,0.00018862,2]
[368766775,1751353624755,-508.21,0.00018862,2]
[368766776,1751353624780,-460.0,0.00018862,2]
[368766777,1751353624804,-679.55,0.00018862,2]
[368766778,1751353624829,-460.0,0.00018862,2]
[368766779,1751353624852,-460.0,0.00018863,2]
[368766780,1751353624880,-460.0,0.00018863,2]
[368766781,1751353624906,-644.38,0.00018863,2]
[368766782,1751353624930,-460.0,0.00018863,2]
[368766783,1751353624954,-460.0,0.00018863,2]
[368766784,1751353624977,-460.0,0.00018863,2]
[368766785,1751353625000,-460.0,0.00018863,2]
[368766786,1751353625024,-460.0,0.00018863,2]
[368766787,1751353625048,-460.0,0.00018863,2]
[368766788,1751353625072,-460.0,0.00018863,2]
[368766789,1751353625096,-460.0,0.00018863,2]
[368766790,1751353625121,-535.69,0.00018863,2]
[368766791,1751353625145,-460.0,0.00018863,2]
[368766792,1751353625172,-643.33,0.00018863,2]
[368766793,1751353625197,-336.36,0.00018863,2]
[368766794,1751353625223,-460.0,0.00018863,2]
[368766795,1751353625247,-515.72,0.00018863,2]
[368766796,1751353625273,-1576.23,0.00018863,2]
[368766797,1751353625297,-460.0,0.00018863,2]
[368766798,1751353625320,-460.0,0.00018863,2]
[368766799,1751353625345,-675.29,0.00018863,2]
[368766800,1751353625371,-460.0,0.00018863,2]
[368766801,1751353625396,-460.0,0.00018863,2]
[368766802,1751353625422,-460.0,0.00018863,2]
[368766803,1751353625449,-626.37,0.00018863,2]
[368766804,1751353625475,-524.45,0.00018863,2]
[368766805,1751353625498,-460.0,0.00018864,2]
[368766806,1751353625522,-460.0,0.00018864,2]
[368766807,1751353625549,-460.0,0.00018865,2]
[368766808,1751353625572,-460.0,0.00018865,2]
[368766809,1751353625596,-460.0,0.00018865,2]